[Event "Elitserien Allsvenskan 2017-18"]
[Site "Lund"]
[Date "2017.10.20"]
[Round "1"]
[White "Engqvist, Thomas"]
[Black "Ziegler, Ari"]
[Result "0-1"]
[ECO "B06"]
[WhiteElo "2352"]
[BlackElo "2319"]
[Annotator "NA"]
[PlyCount "104"]
[EventDate "2017.??.??"]
[EventCountry "SWE"]
[SourceTitle "playchess.com"]
[Source "ChessBase"]
[SourceQuality "1"]
[TimeControl "40/5400+30:1800+30"]

1. Nf3 {[%emt 0:00:00]} g6 2. e4 {[%emt 0:00:16]} Bg7 {[%emt 0:00:35]} 3. d4 {[%emt 0:00:33]} d6 {[%emt 0:01:58]} 4. c3 {[%emt 0:02:23]} Nf6 {[%emt 0:00:42]} 5. Qc2 {[%emt 0:01:58]} O-O {B06: Modern Defence} 6. h3 {[%emt 0:00:51]} (6. Be2 Nbd7 7. O-O e5 8. dxe5 dxe5 9. Rd1 Qe7 10. Bg5 h6 11. Bh4 b6 12. Nbd2 Bb7 13. b4 g5 14. Bg3 Nh5 {1-0 (46) Kovalenko,I (2587)-Mamedyarov,S (2747) Jurmala 2012}) 6... b6 {[%emt 0:03:23]} 7. Be3 {[%emt 0:01:21]} Bb7 {[%emt 0:01:14]} 8. Nbd2 {[%emt 0:00:35]} c5 $146 {[%emt 0:03:03]} ({Predecessor:} 8... Nbd7 9. Bd3 e6 10. Bg5 Qc8 11. O-O c5 12. Rac1 Re8 13. Rfe1 {0-1 (32) Hazar,Y (1456)-Kantar,C (1400) Konya 2017}) 9. Nh2 {[%emt 0:09:43]} cxd4 {[%emt 0:08:57]} 10. cxd4 {[%emt 0:09:51]} Nbd7 {[%emt 0:02:30]} 11. Ng4 {[%emt 0:07:09]} Rc8 {[%emt 0:08:17]} 12. Qb1 {[%emt 0:14:43]} Rc7 {[%emt 0:08:32]} 13. Bd3 {[%emt 0:08:20]} e5 {[%emt 0:11:05]} 14. d5 {[%emt 0:05:59]} Nc5 {[%emt 0:17:45]} 15. Be2 {[%emt 0:06:19]} h5 {[%emt 0:02:56]} 16. Nh2 {[%emt 0:10:47]} Qc8 {[%emt 0:01:40]} 17. b4 {[%emt 0:03:34]} Na4 {[%emt 0:06:47]} 18. Bd3 {[%emt 0:03:03]} Nc3 {[%emt 0:02:52]} 19. Qb3 {[%emt 0:00:59]} Nfxd5 20. exd5 {[%emt 0:00:22]} Bxd5 {[%emt 0:02:02]} 21. Qa3 {[%emt 0:03:21]} Bxg2 {[%emt 0:02:04]} 22. Rg1 {[%emt 0:00:57]} Qxh3 {[%emt 0:00:35]} 23. Bf1 {[%emt 0:04:43]} Bxf1 {[%emt 0:01:27]} 24. Nhxf1 {[%emt 0:09:12]} d5 {[%emt 0:03:36]} 25. f3 Rfc8 26. Qb3 {[%emt 0:00:50]} Qf5 {[%emt 0:01:18]} 27. Rg2 {[%emt 0:00:48]} d4 {[%emt 0:05:12]} 28. Bg1 {[%emt 0:00:38]} Bh6 {[%emt 0:00:59]} 29. a4 {[%emt 0:00:27]} Bg5 {[%emt 0:01:13]} 30. a5 {[%emt 0:00:05]} Qd3 {[%emt 0:02:01]} 31. Bh2 {[%emt 0:01:26]} Bh4+ {[%emt 0:00:07]} 32. Bg3 {[%emt 0:00:04]} Bxg3+ {[%emt 0:01:56]} 33. Nxg3 Qe3+ {[%emt 0:00:10]} 34. Kf1 {[%emt 0:02:36]} Nd5 35. Qxe3 {[%emt 0:02:55]} Nxe3+ {[%emt 0:00:36]} 36. Kf2 {[%emt 0:00:09]} Nxg2 {[%emt 0:00:16]} 37. Kxg2 {[%emt 0:00:00]} Rc2 {[%emt 0:00:13]} 38. Ngf1 Rb2 39. axb6 {[%emt 0:01:30]} axb6 {[%emt 0:00:35]} 40. Kg3 {[%emt 0:01:10]} Rcc2 {[%emt 0:33:12]} 41. Ne4 {[%emt 0:00:00]} Rg2+ {[%emt 0:00:00]} 42. Kh3 {[%emt 0:00:00]} f5 {[%emt 0:00:00]} 43. Ra8+ {[%emt 0:00:43]} Kg7 {[%emt 0:00:00]} 44. Ra7+ {[%emt 0:06:42]} Kh6 {[%emt 0:00:00]} 45. Nf6 {[%emt 0:01:12]} Kg5 {[%emt 0:00:00]} (45... Rgf2 $142 46. Ra1 Rxf3+ 47. Ng3 f4) 46. Nd5 {[%emt 0:01:42]} h4 {[%emt 0:00:00]} 47. Nc7 {[%emt 0:09:26]} Rg1 {[%emt 0:00:00]} 48. Ne6+ {[%emt 0:01:56]} Kf6 {[%emt 0:00:00]} 49. Kxh4 {[%emt 0:01:16]} Rxf1 50. Nf8 Rh1+ {[%emt 0:00:00]} 51. Kg3 {[%emt 0:00:34]} f4+ {[%emt 0:00:00]} 52. Kg4 {[%emt 0:00:05]} Rg2# 0-1

[Event "Elitserien Allsvenskan 2017-18"]
[Site "Lund"]
[Date "2017.10.20"]
[Round "1"]
[White "Agrest, Inna"]
[Black "Hedman, Erik"]
[Result "1-0"]
[ECO "B67"]
[WhiteElo "2271"]
[BlackElo "2366"]
[Annotator "NA RC"]
[PlyCount "67"]
[EventDate "2017.??.??"]
[EventCountry "SWE"]
[SourceTitle "playchess.com"]
[Source "ChessBase"]
[SourceQuality "1"]
[TimeControl "40/5400+30:1800+30"]

{[%evp 13,62,12,37,29,34,32767,32767,47,27,26,20,26,34,32767,0,0,9,0,0,32767,0,-9,-22,0,14,-62,-52,32767,-117,-96,-129,-112,-150,32767,32767,-177,-196,-225,32767,32767,32767,-298,32767,-397,-339,-568,-359,32767,-360,32767,-362]} 1. e4 {[%emt 0:00:00]} c5 {[%emt 0:00:13]} 2. Nf3 {[%emt 0:00:00]} Nc6 {[%emt 0:01:00]} 3. d4 {[%emt 0:00:00]} cxd4 {[%emt 0:00:10]} 4. Nxd4 {[%emt 0:00:00]} Nf6 {[%emt 0:00:02]} 5. Nc3 {[%emt 0:00:00]} d6 {[%emt 0:00:06]} 6. Bg5 {[%emt 0:00:43]} e6 {[%emt 0:00:31]} 7. Qd2 {[%emt 0:02:02]} a6 {[%emt 0:00:46]} 8. O-O-O {[%emt 0:06:41]} Bd7 {[%emt 0:00:36]} 9. f3 {[%emt 0:05:22]} Be7 {[%emt 0:03:19]} 10. h4 {[%emt 0:00:20]} h6 {[%emt 0:01:26] B67: Sicilian: Richter-Rauzer: 7...a6 8 0-0-0 Bd7, lines without 9 f4 Be7} 11. Be3 {[%emt 0:00:12]} h5 {[%emt 0:00:05]} 12. Bg5 {[%emt 0:02:24]} Qc7 {[%emt 0:01:45]} 13. Kb1 {[%emt 0:06:09]} Nxd4 {[%emt 0:00:34]} 14. Qxd4 {[%emt 0:00:09]} b5 {[%emt 0:00:03] LiveBook: 7 Games} 15. Qd2 {[%emt 0:14:38] [#]} Rb8 $146 {[%emt 0:25:04]} ({Predecessor:} 15... b4 16. Ne2 a5 17. Ng3 Bc6 18. Qe1 {0-1 (32) Pikula,D (2562)-Lupulescu,C (2599) Novi Sad 2009}) 16. Bd3 {[%emt 0:09:42]} a5 {[%emt 0:08:00]} 17. Rhe1 {[%emt 0:05:56]} b4 {[%emt 0:04:51]} 18. Ne2 {[%emt 0:00:08]} e5 {[%emt 0:00:10]} 19. f4 {[%emt 0:05:45]} (19. Ng3 $11) 19... Bg4 {[%emt 0:11:39]} 20. f5 {[%emt 0:04:18]} O-O {[%emt 0:03:06]} 21. Rc1 {[%emt 0:06:44]} d5 {[%emt 0:01:55]} 22. Ng3 {[%emt 0:04:38]} Rfd8 {[%emt 0:08:41]} 23. exd5 {[%emt 0:06:20]} Nxd5 {[%emt 0:03:18]} 24. Bxe7 {[%emt 0:04:36]} Qxe7 {[%emt 0:00:09]} ({Inferior is} 24... Nxe7 {[#]} 25. f6 $1 $11 {[%mdl 512]}) 25. Qf2 {[%emt 0:01:06]} Qxh4 {[%emt 0:05:26]} 26. Rxe5 {[%emt 0:02:51]} Qf6 {[%emt 0:00:34]} 27. Rce1 $2 {[%emt 0:01:07]} (27. Ree1 $17) 27... a4 {[%emt 0:01:13]} 28. Nf1 {[%emt 0:04:59]} a3 {[%emt 0:03:23]} 29. Qg3 $2 {[%emt 0:01:15]} (29. Nh2 {keeps fighting.} axb2 30. Nxg4 hxg4 31. Kxb2) 29... Qb6 {[%emt 0:09:13]} 30. Nd2 {[%emt 0:03:46]} Qd4 {[%emt 0:01:16]} 31. Nc4 {[%emt 0:00:13]} axb2 $19 {[%emt 0:00:55]} 32. Rxd5 {[%emt 0:03:04]} Qxd5 {[%emt 0:00:02]} 33. Qf2 {[%emt 0:00:33]} Qd4 {[%emt 0:04:02]} 34. Re8+ {[%emt 0:00:23]} 1-0

[Event "Elitserien Allsvenskan 2017-18"]
[Site "Lund"]
[Date "2017.10.21"]
[Round "2"]
[White "Hansen, Mads"]
[Black "Bator, Robert"]
[Result "1/2-1/2"]
[ECO "B32"]
[WhiteElo "2393"]
[BlackElo "2401"]
[Annotator "NA"]
[PlyCount "54"]
[EventDate "2017.??.??"]
[EventCountry "SWE"]
[SourceTitle "playchess.com"]
[Source "ChessBase"]
[SourceQuality "1"]
[TimeControl "40/5400+30:1800+30"]

1. e4 {[%emt 0:00:00]} c5 {[%emt 0:00:37]} 2. Nf3 {[%emt 0:00:00]} Nc6 {[%emt 0:01:24]} 3. d4 {[%emt 0:00:00]} cxd4 {[%emt 0:00:05]} 4. Nxd4 {[%emt 0:00:00]} e5 {[%emt 0:00:23]} 5. Nb5 {[%emt 0:00:00]} d6 {[%emt 0:00:12]} 6. c4 {[%emt 0:02:27]} Be7 {[%emt 0:01:14]} 7. N1c3 {[%emt 0:03:33]} a6 {[%emt 0:00:50]} 8. Na3 {[%emt 0:00:02]} f5 {[%emt 0:00:55]} 9. exf5 {[%emt 0:00:31]} Bxf5 {[%emt 0:00:08]} 10. Bd3 {[%emt 0:00:33]} Be6 $11 {[%emt 0:00:24]} 11. O-O {[%emt 0:03:17]} Nf6 {[%emt 0:02:30]} 12. Nc2 {[%emt 0:00:05]} O-O {[%emt 0:00:31]} 13. Ne3 {[%emt 0:04:01]} Qd7 {[%emt 0:00:44]} 14. b3 {[%emt 0:08:14]} Rae8 {[%emt 0:03:02]} 15. Bb2 {[%emt 0:05:28]} Bd8 {[%emt 0:03:05]} 16. Ncd5 {[%emt 0:02:46]} Ne7 {[%emt 0:07:41]} 17. Qc2 {[%emt 0:04:16]} Nexd5 {[%emt 0:16:56]} 18. cxd5 {[%emt 0:11:00]} Bf7 {[%emt 0:01:37]} 19. Bf5 {[%emt 0:07:56]} Qc7 {[%emt 0:01:23]} 20. Qd2 {[%emt 0:02:36]} Qb8 {[%emt 0:11:40]} 21. Ba3 {[%emt 0:07:14]} Bb6 {[%emt 0:01:44]} 22. Rad1 {[%emt 0:10:30]} Kh8 {[%emt 0:16:22]} 23. Ng4 {[%emt 0:07:02]} Nxg4 {[%emt 0:05:34]} 24. Bxg4 {[%emt 0:00:48]} Bd4 {[%emt 0:00:44]} 25. Qb4 {[%emt 0:03:51]} Bxd5 {[%emt 0:07:12]} 26. Qxd6 {[%emt 0:06:09]} Qxd6 {[%emt 0:02:20]} 27. Bxd6 {[%emt 0:00:01]} Rf4 {[%emt 0:00:11]} 1/2-1/2

[Event "Elitserien Allsvenskan 2017-18"]
[Site "Lund"]
[Date "2017.10.21"]
[Round "2"]
[White "Cramling, Dan"]
[Black "Agrest, Inna"]
[Result "0-1"]
[ECO "E91"]
[WhiteElo "2383"]
[BlackElo "2271"]
[Annotator "NA"]
[PlyCount "82"]
[EventDate "2017.??.??"]
[EventCountry "SWE"]
[SourceTitle "playchess.com"]
[Source "ChessBase"]
[SourceQuality "1"]
[TimeControl "40/5400+30:1800+30"]

1. d4 {[%emt 0:00:00]} Nf6 {[%emt 0:00:03]} 2. c4 {[%emt 0:00:00]} g6 {[%emt 0:00:04]} 3. Nc3 {[%emt 0:00:05]} Bg7 {[%emt 0:00:06]} 4. e4 {[%emt 0:00:13]} d6 {[%emt 0:00:04] LiveBook: 50393 Games} 5. Be2 $14 {[%emt 0:00:33]} O-O {[%emt 0:00:33]} 6. Nf3 {[%emt 0:00:41]} Nbd7 {[%emt 0:04:17]} 7. Be3 {[%emt 0:02:57]} e5 {[%emt 0:01:13]} 8. O-O {[%emt 0:05:22]} Re8 {[%emt 0:01:09]} 9. d5 {[%emt 0:00:50]} Nh5 {[%emt 0:02:01]} 10. g3 {[%emt 0:04:30]} Bf8 {[%emt 0:01:35]} 11. Ne1 {[%emt 0:11:48]} Ng7 {[%emt 0:01:21]} 12. Nd3 {[%emt 0:01:23]} Be7 {[%emt 0:06:11]} 13. f3 {[%emt 0:28:45]} f5 {[%emt 0:02:43]} 14. b4 {[%emt 0:04:48]} Nf6 {[%emt 0:12:43]} 15. c5 {[%emt 0:01:30]} h5 {[%emt 0:05:37]} 16. Kh1 {[%emt 0:06:19]} Rf8 {[%emt 0:06:55]} 17. Nf2 {[%emt 0:05:40]} Nh7 {[%emt 0:07:41]} 18. Rc1 {[%emt 0:05:03]} g5 {[%emt 0:11:29]} 19. Nb5 {[%emt 0:01:06]} f4 {[%emt 0:06:25]} 20. gxf4 {[%emt 0:01:10]} gxf4 {[%emt 0:01:39]} 21. Bd2 {[%emt 0:02:22]} Bh4 {[%emt 0:02:21]} 22. Nd3 {[%emt 0:06:06]} a6 {[%emt 0:04:40]} 23. Na3 {[%emt 0:00:10]} Ng5 {[%emt 0:04:19]} 24. Rg1 {[%emt 0:01:17]} Qf6 {[%emt 0:02:48]} 25. Nc4 {[%emt 0:02:56]} Bd7 {[%emt 0:03:37]} 26. cxd6 {[%emt 0:04:04]} cxd6 {[%emt 0:00:08]} 27. Nb6 {[%emt 0:00:10]} Rad8 {[%emt 0:00:12]} 28. Rc7 {[%emt 0:00:30]} Rf7 {[%emt 0:01:04]} 29. Rxb7 {[%emt 0:00:39]} Ba4 {[%emt 0:03:37]} 30. Qxa4 {[%emt 0:02:55]} Rxb7 {[%emt 0:00:08]} 31. Qxa6 {[%emt 0:00:07]} Rc7 {[%emt 0:02:45]} 32. Qa4 {[%emt 0:01:04]} Kh8 {[%emt 0:01:59]} 33. Qb3 {[%emt 0:00:29]} Rb8 {[%emt 0:01:18]} 34. Na4 {[%emt 0:00:21]} Nh3 {[%emt 0:01:55]} 35. Rg2 {[%emt 0:00:24]} Ne8 {[%emt 0:00:16]} 36. Bf1 {[%emt 0:00:32]} Ng5 {[%emt 0:00:51]} 37. Ndb2 {[%emt 0:00:45]} Rg7 {[%emt 0:01:42]} 38. Nd1 {[%emt 0:00:36]} Nc7 {[%emt 0:01:24]} 39. Nab2 {[%emt 0:00:45]} Rbg8 {[%emt 0:00:23]} 40. Qc4 {[%emt 0:00:33]} Nxf3 {[%emt 0:30:25]} 41. Qd3 Ng5 0-1

[Event "Elitserien Allsvenskan 2017-18"]
[Site "Lund"]
[Date "2017.10.21"]
[Round "2"]
[White "Hjelm, Niclas"]
[Black "Backlund, Anders"]
[Result "1/2-1/2"]
[ECO "D97"]
[WhiteElo "2358"]
[BlackElo "2321"]
[Annotator "NA"]
[PlyCount "106"]
[EventDate "2017.??.??"]
[EventCountry "SWE"]
[SourceTitle "playchess.com"]
[Source "ChessBase"]
[SourceQuality "1"]
[TimeControl "40/5400+30:1800+30"]

1. d4 {[%emt 0:00:00]} Nf6 {[%emt 0:05:53]} 2. c4 {[%emt 0:00:26]} g6 {[%emt 0:00:09]} 3. Nc3 {[%emt 0:01:01]} d5 {[%emt 0:00:09]} 4. Nf3 {[%emt 0:01:46]} Bg7 {[%emt 0:00:13]} 5. Qb3 {[%emt 0:02:53]} dxc4 {[%emt 0:00:25]} 6. Qxc4 {[%emt 0:00:08]} O-O {[%emt 0:00:32]} 7. e4 {[%emt 0:00:18]} c6 {[%emt 0:03:21]} 8. Be2 {[%emt 0:04:04]} Nbd7 {[%emt 0:02:26]} 9. O-O {[%emt 0:02:06]} Nb6 {[%emt 0:06:14]} 10. Qd3 {[%emt 0:01:40]} Be6 {[%emt 0:07:01]} 11. Rd1 {[%emt 0:08:55]} Bc4 {[%emt 0:05:37]} 12. Qc2 {[%emt 0:00:58]} Bxe2 {[%emt 0:00:39]} 13. Qxe2 {[%emt 0:00:35]} Qc8 {[%emt 0:04:48]} 14. Bf4 {[%emt 0:07:49]} Nh5 {[%emt 0:11:23]} 15. Be3 {[%emt 0:04:28]} f5 {[%emt 0:05:19]} 16. exf5 {[%emt 0:13:48]} Qxf5 {[%emt 0:00:42]} 17. Re1 {[%emt 0:00:51]} Rae8 {[%emt 0:02:43]} 18. Rad1 {[%emt 0:03:21]} e6 {[%emt 0:05:11]} 19. Bc1 {[%emt 0:02:57]} Nf4 {[%emt 0:05:53]} 20. Bxf4 {[%emt 0:02:16]} Qxf4 {[%emt 0:00:13]} 21. h3 {[%emt 0:02:52]} Rf5 {[%emt 0:09:05]} 22. Rd3 {[%emt 0:04:18]} Nd5 {[%emt 0:06:49]} 23. Nxd5 {[%emt 0:01:39]} Rxd5 {[%emt 0:00:21]} 24. Re3 {[%emt 0:08:36]} Qd6 {[%emt 0:04:51]} 25. Rxe6 {[%emt 0:05:28]} Rxe6 {[%emt 0:00:14]} 26. Qxe6+ {[%emt 0:00:07]} Qxe6 {[%emt 0:00:08]} 27. Rxe6 {[%emt 0:00:08]} Bxd4 {[%emt 0:01:35]} 28. Nxd4 {[%emt 0:10:16]} Rxd4 {[%emt 0:00:11]} 29. Re7 {[%emt 0:00:46]} Rb4 {[%emt 0:03:00]} 30. b3 {[%emt 0:00:32]} a5 {[%emt 0:02:05]} 31. Kh2 {[%emt 0:00:58]} a4 {[%emt 0:03:46]} 32. bxa4 {[%emt 0:00:13]} Rxa4 {[%emt 0:00:10]} 33. Rxb7 {[%emt 0:00:13]} Rxa2 {[%emt 0:00:10]} 34. Kg3 {[%emt 0:00:27]} c5 {[%emt 0:01:20]} 35. Rc7 {[%emt 0:00:51]} Rc2 {[%emt 0:00:17]} 36. Kf3 {[%emt 0:02:17]} h5 {[%emt 0:01:33]} 37. h4 {[%emt 0:01:20]} c4 {[%emt 0:00:49]} 38. Ke3 {[%emt 0:01:25]} c3 {[%emt 0:01:25]} 39. g3 {[%emt 0:01:16]} Kf8 {[%emt 0:00:43]} 40. f3 {[%emt 0:01:34]} Rg2 {[%emt 0:31:03]} 41. Kf4 {[%emt 0:33:41]} c2 {[%emt 0:00:46]} 42. g4 {[%emt 0:00:46]} hxg4 {[%emt 0:00:00]} 43. fxg4 {[%emt 0:00:00]} Ke8 {[%emt 0:00:00]} 44. h5 {[%emt 0:00:00]} gxh5 {[%emt 0:00:00]} 45. gxh5 {[%emt 0:00:00]} Kd8 {[%emt 0:00:00]} 46. Rc3 {[%emt 0:00:00]} Ke7 {[%emt 0:00:00]} 47. h6 {[%emt 0:00:00]} Kf7 {[%emt 0:00:00]} 48. h7 {[%emt 0:00:00]} Kg7 {[%emt 0:00:00]} 49. Rc7+ {[%emt 0:00:00]} Kh8 {[%emt 0:00:00]} 50. Ke3 {[%emt 0:00:00]} Rh2 {[%emt 0:00:00]} 51. Kd3 {[%emt 0:00:00]} Rg2 {[%emt 0:00:00]} 52. Rxc2 {[%emt 0:00:00]} Rxc2 {[%emt 0:00:00]} 53. Kxc2 {[%emt 0:00:00]} Kxh7 1/2-1/2

[Event "Elitserien Allsvenskan 2017-18"]
[Site "Lund"]
[Date "2017.10.21"]
[Round "2"]
[White "Ornstein, Axel"]
[Black "Lokander, Martin"]
[Result "1/2-1/2"]
[ECO "A06"]
[WhiteElo "2344"]
[BlackElo "2368"]
[Annotator "ChessBase"]
[PlyCount "20"]
[EventDate "2017.??.??"]
[EventCountry "SWE"]
[SourceTitle "playchess.com"]
[Source "ChessBase"]
[SourceQuality "1"]
[TimeControl "40/5400+30:1800+30"]

1. Nf3 {[%emt 0:01:21]} d5 {[%emt 0:01:21]} 2. g3 {[%emt 0:00:53]} Nd7 {[%emt 0:01:16]} 3. d4 {[%emt 0:01:11]} b5 {[%emt 0:00:11]} 4. Bg2 {[%emt 0:01:16]} Bb7 {[%emt 0:00:32]} 5. O-O {[%emt 0:00:24]} Ngf6 {[%emt 0:00:12]} 6. Nbd2 {[%emt 0:02:57]} e6 {[%emt 0:00:07]} 7. b3 {[%emt 0:00:10]} c5 {[%emt 0:02:02]} 8. c4 {[%emt 0:03:18]} bxc4 {[%emt 0:00:58]} 9. bxc4 {[%emt 0:00:08]} dxc4 {[%emt 0:00:30]} 10. Nxc4 {[%emt 0:01:49]} Be7 {[%emt 0:00:24]} 1/2-1/2

[Event "Elitserien Allsvenskan 2017-18"]
[Site "Lund"]
[Date "2017.10.21"]
[Round "2"]
[White "Ziegler, Ari"]
[Black "Grandell, Anders"]
[Result "1/2-1/2"]
[ECO "B30"]
[WhiteElo "2319"]
[BlackElo "2224"]
[Annotator "NA"]
[PlyCount "128"]
[EventDate "2017.??.??"]
[EventCountry "SWE"]
[SourceTitle "playchess.com"]
[Source "ChessBase"]
[SourceQuality "1"]
[TimeControl "40/5400+30:1800+30"]

1. e4 {[%emt 0:00:00]} c5 {[%emt 0:00:13]} 2. Nf3 {[%emt 0:00:00]} Nc6 {[%emt 0:00:03]} 3. Bb5 {[%emt 0:00:00]} e6 {[%emt 0:00:05]} 4. b3 {[%emt 0:02:35]} Nge7 {[%emt 0:09:08]} 5. Bb2 {[%emt 0:03:48]} a6 {[%emt 0:01:18]} 6. Bxc6 {[%emt 0:01:36]} Nxc6 {[%emt 0:00:21]} 7. e5 {[%emt 0:08:53]} d6 {[%emt 0:07:35]} 8. exd6 {[%emt 0:03:27]} Bxd6 {[%emt 0:00:51]} 9. Bxg7 {[%emt 0:05:42]} Rg8 {[%emt 0:00:08]} 10. Bb2 {[%emt 0:00:17]} Rxg2 {[%emt 0:00:33]} 11. Qe2 {[%emt 0:00:41]} Nd4 {[%emt 0:06:22]} 12. Nxd4 {[%emt 0:03:32]} cxd4 {[%emt 0:00:43]} 13. Bxd4 {[%emt 0:07:27]} Qh4 {[%emt 0:05:05]} 14. Be3 {[%emt 0:03:16]} Bd7 {[%emt 0:11:43]} 15. Nc3 {[%emt 0:10:06]} Bc6 {[%emt 0:03:33]} 16. O-O-O {[%emt 0:01:56]} O-O-O {[%emt 0:00:27]} 17. h3 {[%emt 0:05:09]} Rg6 {[%emt 0:08:03]} 18. f3 {[%emt 0:03:29]} Qh5 {[%emt 0:00:43]} 19. Rhf1 {[%emt 0:10:23]} Qxh3 {[%emt 0:08:04]} 20. Bb6 {[%emt 0:00:22]} Rdg8 {[%emt 0:02:47]} 21. Ne4 {[%emt 0:02:13]} Ba3+ {[%emt 0:01:23]} 22. Kb1 {[%emt 0:00:09]} Qf5 {[%emt 0:03:34]} 23. Qh2 {[%emt 0:04:21]} e5 {[%emt 0:03:03]} 24. Qxh7 {[%emt 0:00:35]} Qe6 {[%emt 0:04:54]} 25. Nc3 {[%emt 0:12:09]} R6g7 {[%emt 0:05:53]} 26. Qh5 {[%emt 0:03:29]} f5 {[%emt 0:01:07]} 27. d4 {[%emt 0:02:44]} Be8 {[%emt 0:00:46]} 28. Qh3 {[%emt 0:00:56]} Qxb6 {[%emt 0:02:02]} 29. Qxf5+ {[%emt 0:00:41]} Bd7 {[%emt 0:00:06]} 30. Qxe5 {[%emt 0:00:13]} Bd6 {[%emt 0:00:49]} 31. Qe4 {[%emt 0:01:05]} Re8 {[%emt 0:01:40]} 32. Qd3 {[%emt 0:00:23]} Kb8 {[%emt 0:03:04]} 33. Rg1 {[%emt 0:01:53]} Rxg1 {[%emt 0:01:01]} 34. Rxg1 {[%emt 0:00:01]} Qa5 {[%emt 0:01:08]} 35. Ne4 {[%emt 0:02:34]} Bf5 {[%emt 0:02:12]} 36. a4 {[%emt 0:00:29]} Bf4 {[%emt 0:01:36]} 37. Rh1 {[%emt 0:00:23]} Qd5 {[%emt 0:02:37]} 38. Re1 {[%emt 0:00:01]} Rd8 {[%emt 0:01:41]} 39. Rd1 {[%emt 0:00:31]} Bc7 {[%emt 0:00:58]} 40. Qe3 {[%emt 0:01:24]} Qc6 {[%emt 0:32:14]} 41. Re1 {[%emt 0:05:40]} Ka8 {[%emt 0:00:00]} 42. Kb2 {[%emt 0:00:39]} Bb6 {[%emt 0:00:00]} 43. c3 {[%emt 0:00:41]} Rc8 {[%emt 0:00:00]} 44. Rc1 {[%emt 0:00:24]} Re8 {[%emt 0:00:00]} 45. Re1 {[%emt 0:00:07]} Bc7 {[%emt 0:00:00]} 46. Re2 {[%emt 0:00:29]} Qg6 {[%emt 0:00:00]} 47. Ka2 {[%emt 0:01:29]} Qh7 {[%emt 0:00:00]} 48. Kb2 {[%emt 0:01:17]} Qh4 {[%emt 0:00:00]} 49. Qd3 {[%emt 0:01:48]} Bf4 {[%emt 0:00:00]} 50. Ka2 {[%emt 0:05:58]} Qh1 {[%emt 0:00:00]} 51. Kb2 {[%emt 0:03:26]} Rg8 {[%emt 0:00:00]} 52. b4 {[%emt 0:07:25]} Qc1+ {[%emt 0:01:00]} 53. Kb3 {[%emt 0:00:10]} Qf1 {[%emt 0:03:10]} 54. b5 {[%emt 0:02:37]} Ka7 {[%emt 0:02:19]} 55. d5 {[%emt 0:00:36]} Bc7 {[%emt 0:01:05]} 56. Rd2 {[%emt 0:01:33]} Qa1 {[%emt 0:00:30]} 57. Ra2 {[%emt 0:00:16]} Qg1 {[%emt 0:00:28]} 58. a5 {[%emt 0:00:41]} Bxe4 {[%emt 0:00:42]} 59. fxe4 {[%emt 0:00:31]} axb5 {[%emt 0:00:25]} 60. Qxb5 {[%emt 0:01:02]} Qb1+ {[%emt 0:00:23]} 61. Rb2 {[%emt 0:00:21]} Qd1+ {[%emt 0:00:40]} 62. Ka2 {[%emt 0:00:28]} Rb8 {[%emt 0:00:13]} 63. Qc5+ {[%emt 0:01:28]} Ka8 {[%emt 0:00:05]} 64. Qxc7 {[%emt 0:00:16]} Qa4+ 1/2-1/2

[Event "Elitserien Allsvenskan 2017-18"]
[Site "Lund"]
[Date "2017.10.21"]
[Round "2"]
[White "Kucuksari, Kaan"]
[Black "Cederberg, Karl-Olof"]
[Result "1-0"]
[ECO "E11"]
[WhiteElo "2315"]
[BlackElo "2161"]
[Annotator "NA"]
[PlyCount "77"]
[EventDate "2017.??.??"]
[EventCountry "SWE"]
[SourceTitle "playchess.com"]
[Source "ChessBase"]
[SourceQuality "1"]
[TimeControl "40/5400+30:1800+30"]

1. d4 {[%emt 0:00:00]} Nf6 {[%emt 0:00:06]} 2. Nf3 {[%emt 0:00:00]} e6 {[%emt 0:02:35]} 3. c4 {[%emt 0:00:00]} Bb4+ {[%emt 0:00:14]} 4. Nbd2 {[%emt 0:00:00]} Nc6 {[%emt 0:05:30]} 5. a3 {[%emt 0:01:34]} Bxd2+ {[%emt 0:00:07]} 6. Bxd2 $14 {[%emt 0:01:14]} d6 {[%emt 0:00:04]} 7. Bg5 {[%emt 0:02:49]} Qe7 {[%emt 0:03:49]} 8. e3 {[%emt 0:01:02]} e5 {[%emt 0:00:21]} 9. Be2 {[%emt 0:01:34]} h6 {[%emt 0:03:56]} 10. Bh4 {[%emt 0:06:12]} O-O {[%emt 0:00:45]} 11. O-O {[%emt 0:02:25]} Re8 {[%emt 0:02:30]} 12. Re1 {[%emt 0:01:04]} a5 {[%emt 0:11:11]} 13. b3 {[%emt 0:04:25]} Bf5 {[%emt 0:03:40]} 14. h3 {[%emt 0:02:36]} g5 {[%emt 0:04:45]} 15. Bg3 {[%emt 0:00:32]} Ne4 {[%emt 0:00:42]} 16. Bd3 {[%emt 0:02:55]} Nxg3 {[%emt 0:00:12]} 17. fxg3 {[%emt 0:02:20]} e4 {[%emt 0:00:13]} 18. Bc2 {[%emt 0:00:29]} Bg6 {[%emt 0:08:32]} 19. Nd2 {[%emt 0:00:52]} f5 {[%emt 0:00:11]} 20. g4 {[%emt 0:03:59]} f4 {[%emt 0:12:55]} 21. exf4 {[%emt 0:08:27]} gxf4 {[%emt 0:00:25]} 22. Bxe4 {[%emt 0:05:28]} Bxe4 {[%emt 0:01:01]} 23. Rxe4 {[%emt 0:00:27]} Qf6 {[%emt 0:00:11]} 24. Rxe8+ {[%emt 0:01:38]} Rxe8 {[%emt 0:00:05]} 25. Nf3 {[%emt 0:00:13]} Re3 {[%emt 0:01:26]} 26. Qd2 {[%emt 0:06:48]} Rxb3 {[%emt 0:05:21]} 27. Re1 {[%emt 0:02:29]} Rxa3 {[%emt 0:00:54]} 28. Re8+ {[%emt 0:04:25]} Kg7 {[%emt 0:05:25]} 29. Rc8 {[%emt 0:07:08]} Rb3 {[%emt 0:18:10]} 30. Rxc7+ {[%emt 0:02:23]} Kf8 {[%emt 0:00:31]} 31. Kh2 {[%emt 0:14:33]} a4 {[%emt 0:07:13]} 32. Qc2 {[%emt 0:01:21]} Ne7 {[%emt 0:00:24]} 33. Qa2 {[%emt 0:02:44]} Qe6 {[%emt 0:01:38]} 34. d5 {[%emt 0:02:45]} Qf6 {[%emt 0:01:43]} 35. Qc2 {[%emt 0:03:35]} Kg8 {[%emt 0:00:19]} 36. Rd7 {[%emt 0:02:44]} Kf8 {[%emt 0:00:42]} 37. c5 {[%emt 0:01:32]} Rc3 {[%emt 0:00:37]} 38. Qh7 {[%emt 0:01:58]} Rxc5 {[%emt 0:00:03]} 39. Rd8# {[%emt 0:00:03]} 1-0